fUST/lending_fUST_20251220
["ID","MTS","AMOUNT","RATE_DAILY","PERIOD"]
[399217311,1766179149865,500.0,0.00013699,2]
[399217312,1766179153431,500.0,0.00013699,2]
[399217314,1766179208412,500.0,0.00013699,2]
[399217315,1766179210276,425.74949727,0.00013699,2]
[399217316,1766179210475,500.0,0.00013699,2]
[399217318,1766179263706,500.0,0.00013821,2]
[399217319,1766179263767,500.0,0.00013273,2]
[399217320,1766179263800,500.0,0.00013273,2]
[399217321,1766179263831,363.65694537,0.00013821,2]
[399217322,1766179266975,500.0,0.00013273,2]
[399217323,1766179267026,1000.0,0.00013821,2]
[399217324,1766179267257,500.0,0.00013699,2]
[399217325,1766179323891,500.0,0.00013699,2]
[399217326,1766179327720,500.0,0.00013699,2]
[399217327,1766179331647,500.0,0.00013699,2]
[399217328,1766179383590,500.0,0.00013273,2]
[399217329,1766179446431,563.83489877,0.00013699,2]
[399217330,1766179504498,500.0,0.00013699,2]
[399217331,1766179563982,500.0,0.00013699,2]
[399217332,1766179564038,500.0,0.00013699,2]
[399217333,1766179567620,436.16510123,0.00013699,2]
[399217334,1766179568058,500.0,0.00013699,2]
[399217336,1766179695617,681.27320878,0.00013914,7]
[399217369,1766179806857,417.74907769,0.00013273,2]
[399217404,1766179831961,-248.2219564,0.00014526,2]
[399217406,1766179831970,-306.136966,0.00015,2]
[399217407,1766179831979,-150.56057118,0.00015,2]
[399217409,1766179831989,-868.93461092,0.00015399,2]
[399217411,1766179831998,-188.0158406,0.00015724,2]
[399217413,1766179832007,-4510.57537371,0.00015897,2]
[399217415,1766179832016,-1200.0,0.00015952,2]
[399217416,1766179832025,-2348.60505431,0.00015953,2]
[399217418,1766179832035,-600.0,0.00015959,2]
[399217420,1766179832044,-300.0,0.00015966,2]
[399217422,1766179832053,-300.0,0.00015966,2]
[399217424,1766179832062,-300.0,0.00015966,2]
[399217426,1766179832071,-1200.0,0.00015967,2]
[399217428,1766179832080,-187.86757217,0.00015968,2]
[399217429,1766179832089,-151.0,0.00015968,2]
[399217431,1766179832099,-152.16099869,0.00015968,2]
[399217433,1766179832108,-500.0,0.00015968,2]
[399217435,1766179832119,-500.0,0.00015968,2]
[399217437,1766179832131,-500.0,0.00015968,2]
[399217439,1766179832140,-574.12855637,0.00015968,2]
[399217441,1766179832149,-500.0,0.00015968,2]
[399217443,1766179832159,-250.0,0.00015968,2]
[399217445,1766179832169,-500.0,0.00015968,2]
[399217446,1766179832178,-250.0,0.00015968,2]
[399217448,1766179832187,-500.0,0.00015968,2]
[399217450,1766179832197,-250.0,0.00015968,2]
[399217451,1766179832206,-202.49842454,0.00015968,2]
[399217452,1766179832215,-250.0,0.00015968,2]
[399217453,1766179832224,-250.0,0.00015968,2]
[399217454,1766179832232,-250.0,0.00015968,2]
[399217455,1766179832242,-250.0,0.00015968,2]
[399217456,1766179832251,-153.99003068,0.00015968,2]
[399217457,1766179832260,-250.0,0.00015968,2]
[399217458,1766179832270,-250.0,0.00015968,2]
[399217459,1766179832280,-250.0,0.00015968,2]
[399217460,1766179832290,-250.0,0.00015968,2]
[399217461,1766179832399,-500.0,0.00015977,2]
[399217462,1766179832408,-200.0,0.00015977,2]
[399217463,1766179832418,-507.92511691,0.00015977,2]
[399217464,1766179832427,-500.0,0.00015977,2]
[399217465,1766179832436,-500.0,0.00015977,2]
[399217466,1766179832447,-500.0,0.00015977,2]
[399217467,1766179832460,-500.0,0.00015977,2]
[399217468,1766179832469,-500.0,0.00015977,2]
[399217469,1766179832478,-407.23392661,0.00015977,2]
[399217470,1766179832487,-500.0,0.00015977,2]
[399217471,1766179832496,-486.61220075,0.00015977,2]
[399217472,1766179832505,-466.99004398,0.00015977,2]
[399217473,1766179832514,-500.0,0.00015977,2]
[399217474,1766179832523,-359.20937707,0.00015977,2]
[399217475,1766179832532,-500.0,0.00015977,2]
[399217476,1766179832541,-319.88662106,0.00015977,2]
[399217477,1766179832550,-500.0,0.00015977,2]
[399217478,1766179832559,-500.0,0.00015977,2]
[399217479,1766179832568,-500.0,0.00015977,2]
[399217480,1766179832578,-500.0,0.00015977,2]
[399217481,1766179832586,-398.00074638,0.00015977,2]
[399217482,1766179832595,-165.414,0.00015977,2]
[399217483,1766179832604,-500.0,0.00015977,2]
[399217484,1766179832613,-6103.91767421,0.00015978,2]
[399217485,1766179832625,-858.12873,0.00015978,2]
[399217637,1766179838062,-25721.82713994,0.00015978,2]
[399217648,1766179838155,-22320.21664996,0.00015978,2]
[399217650,1766179838167,-300.64585245,0.00015978,2]
[399217652,1766179838180,-1501.08898084,0.00015978,2]
[399217655,1766179838192,-1417.25,0.00015978,2]
[399217874,1766179840426,-3886.74185346,0.00015978,2]
[399217881,1766179840484,-1144.60886202,0.00015978,2]
[399218163,1766179930612,532.18903834,0.00013699,2]
[399218165,1766180522471,849.201776,0.00013699,2]
[399218239,1766180944181,473.95502877,0.00013273,2]
[399218311,1766181032224,-650.02727789,0.0001401,7]
[399218314,1766181032234,-243.25751727,0.00014245,2]
[399218317,1766181032244,-42.62977284,0.0001448,2]
[399218365,1766181038328,-202.76680604,0.00014032,7]
[399218367,1766181038338,-474.92548551,0.0001448,2]
[399218369,1766181038347,-931.59946504,0.0001448,2]
[399218372,1766181038356,-169.620056,0.00015068,2]
[399218375,1766181038366,-239.68178452,0.00015526,7]
[399218377,1766181038375,-367.56640289,0.00015777,2]
[399220166,1766181245468,500.0,0.00013273,2]
[399220167,1766181245500,500.0,0.00013821,2]
[399220192,1766181816535,275.80240991,0.00013634,2]
[399220193,1766181902554,150.0,9.829e-05,2]
[399220194,1766181902953,150.0,0.00010297,2]
[399220195,1766181903359,150.0,0.00010765,2]
[399220196,1766181903749,150.0,0.00011233,2]
[399220197,1766181904301,150.0,0.00011701,2]
[399220198,1766181904604,150.0,0.00012169,2]
[399220199,1766181956084,5169.36,0.000153,120]
[399220241,1766182232362,-625.0,0.00014351,2]
[399220242,1766182232371,-109.15366601,0.00014351,2]
[399220245,1766182232382,-134.5514616,0.00014351,2]
[399220246,1766182232391,-485.29765944,0.00014351,2]
[399220248,1766182232402,-224.43016227,0.00014351,2]
[399220250,1766182232411,-645.11773197,0.00014351,2]
[399220252,1766182232420,-1200.0,0.00014431,2]
[399220254,1766182232429,-493.81809149,0.00014432,2]
[399220256,1766182232439,-888.87256469,0.00014432,2]
[399220258,1766182232448,-154.03956201,0.00014444,2]
[399220259,1766182232457,-277.27121161,0.00014444,2]
[399220261,1766182232466,-531.239814,0.00014517,2]
[399220262,1766182232476,-1000.0,0.00014691,2]
[399220264,1766182232486,-300.0,0.00014852,2]
[399220266,1766182232495,-300.0,0.00014852,2]
[399220268,1766182232505,-247.49078086,0.00014854,7]
[399220269,1766182232515,-531.30206847,0.00014854,7]
[399220270,1766182232524,-246.76388603,0.00014876,2]
[399220271,1766182232534,-209.0,0.00015,2]
[399220272,1766182232543,-1200.0,0.0001519,2]
[399220273,1766182232552,-388.51668446,0.0001519,2]
[399220274,1766182232561,-227.31033103,0.000153,2]
[399220276,1766182232570,-333.33333333,0.000153,2]
[399220277,1766182232580,-1000.0,0.00015444,5]
[399220279,1766182232589,-3946.75345197,0.00015656,2]
[399220280,1766182232598,-3238.32316581,0.00015677,2]
[399220281,1766182232609,-1660.07122545,0.00015677,2]
[399220282,1766182234124,177.60956499,0.00013634,2]
[399220837,1766182243753,-388.51668446,0.00015677,2]
[399221333,1766182276568,1000.0,0.00013821,2]
[399221334,1766182276629,500.0,0.00013273,2]
[399221337,1766182330421,500.0,0.00013699,2]
[399221338,1766182331199,-206.84041916,0.00014247,2]
[399221339,1766182396509,612.94797816,0.00013821,2]
[399221340,1766182396560,500.0,0.00013273,2]
[399221341,1766182414473,150.0,0.00010546,2]
[399221342,1766182449104,206.82586813,0.00013699,2]
[399221343,1766182451616,500.0,0.00013699,2]
[399221344,1766182575195,261.81176436,0.00013699,2]
[399221345,1766182689082,500.0,0.00013699,2]
[399221348,1766182866074,500.0,0.00013699,2]
[399221352,1766182932972,500.0,0.00013699,2]
[399221353,1766183006158,182.08343776,0.00013707,2]
[399221354,1766183008396,327.75018798,0.00013707,2]
[399221355,1766183043551,500.0,0.00013699,2]
[399221356,1766183053699,500.0,0.00013699,2]
[399221357,1766183191250,8490.17637426,0.0001401,2]
[399221358,1766183191274,1509.82362574,0.0001401,2]
[399221359,1766183215433,8490.18637426,0.0001401,2]
[399221360,1766183215457,1509.81362574,0.0001401,2]
[399221361,1766183223610,500.0,0.00013273,2]
[399221362,1766183223671,1000.0,0.00013821,2]
[399221363,1766183223851,500.0,0.00013273,2]
[399221366,1766183226692,4139.26958089,0.0001401,2]
[399221367,1766183226851,501.27079192,0.00013699,2]
[399221368,1766183227047,500.0,0.00013273,2]
[399221369,1766183227075,1000.0,0.00013821,2]
[399221372,1766183227427,349.65600145,0.00013273,2]
[399221373,1766183227452,151.98872572,0.00013273,2]
[399221374,1766183231015,500.0,0.00013699,2]
[399221375,1766183233712,500.0,0.00013699,2]
[399221376,1766183235931,500.0,0.00013699,2]
[399221378,1766183240906,510.30206437,0.00013699,2]
[399221380,1766183244788,500.0,0.00013273,2]
[399221381,1766183244836,448.62294527,0.00013821,2]
[399221382,1766183245841,300.0,0.00013673,2]
[399221383,1766183248401,500.0,0.00013273,2]
[399221384,1766183248524,327.17075009,0.00013821,2]
[399221387,1766183249436,420.0,0.0001401,2]
[399221388,1766183288100,500.0,0.00013699,2]
[399221390,1766183289237,500.0,0.00013699,2]
[399221391,1766183289855,500.0,0.00013699,2]
[399221392,1766183290995,500.0,0.00013699,2]
[399221393,1766183291029,500.0,0.00013699,2]
[399221394,1766183291225,290.54215613,0.00013273,2]
[399221395,1766183295096,252.84571438,0.00013699,2]
[399221397,1766183306950,150.0,9.8e-05,2]
[399221398,1766183307331,185.18,0.00010266,2]
[399221399,1766183307733,277.76,0.00010733,2]
[399221400,1766183308579,370.35,0.00011199,2]
[399221401,1766183309393,462.94,0.00011666,2]
[399221403,1766183309863,555.53,0.00012133,2]
[399221404,1766183310194,648.11,0.00012599,2]
[399221405,1766183310582,740.7,0.00013066,2]
[399221406,1766183310985,559.95636976,0.00013533,2]
[399221407,1766183311022,273.33363024,0.00013533,2]
[399221408,1766183311373,925.88,0.00013999,2]
[399221409,1766183322300,338.42851308,0.00013727,2]
[399221410,1766183343655,607.31949501,0.00013699,2]
[399221411,1766183343702,500.0,0.00013699,2]
[399221412,1766183346550,500.0,0.00013699,2]
[399221413,1766183346981,500.0,0.00013699,2]
[399221414,1766183347286,500.0,0.00013699,2]
[399221415,1766183349769,500.0,0.00013699,2]
[399221416,1766183350461,500.0,0.00013699,2]
[399221417,1766183363106,4183.38046494,0.0001401,2]
[399221418,1766183382543,150.0,0.00011054,2]
[399221419,1766183382975,150.0,0.0001158,2]
[399221420,1766183383350,150.0,0.00012107,2]
[399221421,1766183383772,199.76,0.00012633,2]
[399221422,1766183384633,21.90789673,0.00013159,2]
[399221423,1766183384658,227.79210327,0.00013159,2]
[399221424,1766183385027,299.64,0.00013686,2]
[399221427,1766183409729,505.72781419,0.00013699,2]
[399221428,1766183409932,2500.0,8e-05,2]
[399221429,1766183410577,1439.2084,8e-05,2]
[399221430,1766183412247,500.0,0.00013699,2]
[399221431,1766183412414,500.0,0.00013699,2]
[399221432,1766183412944,500.0,0.00013699,2]
[399221433,1766183416284,500.0,0.00013699,2]
[399221495,1766183432500,-349.58,0.00014212,2]
[399221496,1766183432511,-268.55832791,0.00014246,2]
[399221497,1766183432587,-31.44167209,0.00014246,2]
[399221499,1766183432597,-1200.0,0.00014246,2]
[399221501,1766183432606,-560.961477,0.00014247,2]
[399221503,1766183432615,-1000.0,0.00014247,2]
[399221505,1766183432624,-692.16490992,0.00014247,2]
[399221506,1766183432633,-1005.80389223,0.00014247,2]
[399221507,1766183432642,-544.55784847,0.00014247,2]
[399221508,1766183432651,-243.90863529,0.00014337,2]
[399221509,1766183432660,-399.52,0.00014738,2]
[399221510,1766183432670,-150.0,0.00015117,7]
[399221511,1766183432679,-150.0,0.00015117,7]
[399221512,1766183432687,-150.0,0.00015117,7]
[399221513,1766183432696,-278.19161548,0.00015123,7]
[399221514,1766183432705,-150.0,0.00015254,7]
[399221515,1766183432714,-150.0,0.00015254,7]
[399221516,1766183432723,-449.46,0.00015265,2]
[399221517,1766183432733,-1264.2856147,0.00015291,2]
[399221518,1766183432744,-492.59946567,0.00015291,2]
[399221519,1766183432761,-451.39396205,0.00015291,2]
[399221532,1766183438510,-11236.74745935,0.00015117,2]
[399221534,1766183438520,-2319.94647888,0.00015291,2]
[399221547,1766183438635,-50427.52983178,0.00015291,2]
[399221739,1766183440820,-269.247383,0.00015291,2]
[399221829,1766183445835,-8820.2249,0.00015291,2]
[399221830,1766183456239,150.0,9.679e-05,2]
[399221831,1766183456647,150.0,0.0001014,2]
[399221832,1766183457055,150.0,0.00010601,2]
[399221833,1766183457486,150.0,0.00011062,2]
[399221834,1766183457875,150.0,0.00011523,2]
[399221835,1766183458271,150.0,0.00011984,2]
[399221836,1766183459081,150.0,0.00012445,2]
[399221837,1766183459487,155.4,0.00012906,2]
[399221838,1766183459899,174.82,0.00013367,2]
[399221839,1766183466760,500.0,0.00013273,2]
[399221840,1766183466814,1000.0,0.00013821,2]
[399221841,1766183471074,147.42168254,0.00013699,2]
[399221842,1766183471096,352.57831746,0.00013699,2]
[399221843,1766183475957,188.74662648,0.00013699,2]
[399221844,1766183479439,500.0,0.00013699,2]
[399221845,1766183479780,500.0,0.00013273,2]
[399221846,1766183479841,1000.0,0.00013821,2]
[399221847,1766183481195,190.40973251,0.00013699,2]
[399221848,1766183482938,500.0,0.00013699,2]
[399221849,1766183484418,430.12411407,0.00013273,2]
[399221850,1766183491366,3164.98108662,0.0001401,2]
[399221853,1766183499607,3173.17012286,0.0001401,2]
[399221854,1766183499631,1826.82987714,0.0001401,2]
[399221863,1766183517203,-500.0,0.00014247,2]
[399221866,1766183523822,4300.0,0.000143,2]
[399221867,1766183529331,500.0,0.00013273,2]
[399221868,1766183532465,500.0,0.00013699,2]
[399221869,1766183532791,500.0,0.00013699,2]
[399221870,1766183535791,500.0,0.00013699,2]
[399221873,1766183586403,500.0,0.00013699,2]
[399221875,1766183600428,500.0,0.00013273,2]
[399221876,1766183600482,250.0,0.00013821,2]
[399221877,1766183606446,3718.16451541,0.0001401,2]
[399221878,1766183628831,542.1403115,0.0001401,2]
[399221879,1766183643267,500.0,0.00013699,2]
[399221880,1766183653249,293.17413187,0.00013699,2]
[399221881,1766183655554,500.0,0.00013699,2]
[399221882,1766183703166,213.70282326,0.00013273,2]
[399221883,1766183706045,500.0,0.00013699,2]
[399221884,1766183721938,500.0,0.00013273,2]
[399221887,1766183771067,-198.02041339,0.00013699,2]
[399221888,1766183773191,-250.0,0.00013699,2]
[399221891,1766183831724,-500.0,0.00013273,2]
[399221892,1766183831746,-51.97958661,0.00013699,2]
[399221893,1766183831768,-449.47080907,0.00013699,2]
[399221894,1766183833750,-50.52919093,0.00013699,2]
[399221895,1766183833772,-433.19062352,0.00013699,2]
[399221896,1766183836297,-66.80937648,0.00013699,2]
[399221897,1766183836320,-716.91043797,0.00013821,2]
[399221898,1766183861126,-250.0,0.00013273,2]
[399221899,1766183861148,-239.03046259,0.00013547,2]
[399221900,1766183861172,-227.24972296,0.00013821,2]
[399221901,1766183876856,-55.83983907,0.00013821,2]
[399221902,1766183885827,500.0,0.00013273,2]
[399221903,1766183885888,1000.0,0.00013821,2]
[399221904,1766183887604,500.0,0.00013273,2]
[399221905,1766183887654,501.45039568,0.00013821,2]
[399221906,1766183968570,150.0,0.00010395,2]
[399221907,1766183968963,150.0,0.0001089,2]
[399221908,1766184003996,500.0,0.00013273,2]
[399221909,1766184033775,150.0,9.698e-05,2]
[399221910,1766184034161,150.0,0.0001016,2]
[399221916,1766184066735,500.0,0.00013273,2]
[399221917,1766184066790,181.74022784,0.00013821,2]
[399221920,1766184146728,-393.27651752,0.00013963,2]
[399221921,1766184149070,-287.09803615,0.00013963,2]
[399221924,1766184176033,-19.62544633,0.00013963,2]
[399221925,1766184176056,-217.22390235,0.00014034,2]
[399221929,1766184183625,264.79036692,0.00013821,2]
[399221930,1766184183655,500.0,0.00013273,2]
[399221931,1766184223227,403.22031982,0.00013756,2]
[399221932,1766184225592,725.0707791,0.00013756,2]
[399221933,1766184226691,150.0,0.00010421,2]
[399221934,1766184227101,150.0,0.00010918,2]
[399221935,1766184245275,3104.85352809,0.00013821,2]
[399221936,1766184268094,1695.17647191,0.00013821,2]
[399221937,1766184290946,150.0,0.00010367,2]
[399221938,1766184291374,150.0,0.00010861,2]
[399221939,1766184291793,150.0,0.00011354,2]
[399221940,1766184292169,150.0,0.00011848,2]
[399221941,1766184292556,150.0,0.00012342,2]
[399221942,1766184292969,150.0,0.00012835,2]
[399221961,1766184315962,300.0,0.00013699,2]
[399221962,1766184318709,300.0,0.00013699,2]
[399221967,1766184344317,387.92295245,0.00013673,2]
[399221975,1766184367512,500.73063204,0.00013699,2]
[399221976,1766184367541,500.0,0.00013699,2]
[399221977,1766184371437,539.08059748,0.00013273,2]
[399221978,1766184389015,343.95471911,0.00013817,2]
[399221979,1766184389040,409.06963089,0.00013817,2]
[399221980,1766184423306,371.25963582,0.00013699,2]
[399221981,1766184423337,500.0,0.00013273,2]
[399221982,1766184423373,199.16280842,0.00013821,2]
[399221983,1766184427157,500.0,0.00013273,2]
[399221984,1766184427194,278.08049584,0.00013821,2]
[399221985,1766184436680,500.0,0.00013699,2]
[399221986,1766184438911,500.0,0.00013699,2]
[399221990,1766184442231,473.95502877,0.00013699,2]
[399221991,1766184442764,500.0,0.00013273,2]
[399221992,1766184442801,500.0,0.00013821,2]
[399221997,1766184484407,150.0,9.635e-05,2]
[399221998,1766184484818,150.0,0.00010093,2]
[399221999,1766184490627,500.0,0.00013273,2]
[399222000,1766184490685,465.42322414,0.00013821,2]
[399222003,1766184506126,-194.95958956,0.00013827,2]
[399222004,1766184512963,-207.11351344,0.00013827,2]
[399222005,1766184512991,-143.53483847,0.00014069,2]
[399222008,1766184554059,500.0,0.00013699,2]
[399222009,1766184564306,376.18877048,0.00013673,2]
[399222010,1766184564506,500.0,0.00013273,2]
[399222011,1766184564568,500.0,0.00013821,2]
[399222015,1766184603531,500.0,0.00013699,2]
[399222016,1766184607682,500.0,0.00013699,2]
[399222017,1766184608429,-89.37053682,0.00014069,2]
[399222018,1766184608452,-386.68877027,0.00014069,2]
[399222019,1766184610576,-200.21115038,0.00014069,2]
[399222020,1766184611155,500.0,0.00013699,2]
[399222035,1766184631750,-34.10007935,0.00014069,2]
[399222037,1766184631760,-500.0,0.00014247,2]
[399222039,1766184631769,-300.0,0.00014299,2]
[399222041,1766184631779,-1200.0,0.00014299,2]
[399222043,1766184631788,-1000.0,0.000143,2]
[399222045,1766184631797,-1000.0,0.000143,2]
[399222047,1766184631806,-1000.0,0.000143,2]
[399222049,1766184631815,-906.25830196,0.000143,2]
[399222051,1766184631825,-151.0,0.000143,2]
[399222053,1766184631834,-151.0,0.000143,2]
[399222055,1766184631844,-151.0,0.000143,2]
[399222057,1766184631853,-151.0,0.000143,2]
[399222059,1766184631862,-151.0,0.000143,2]
[399222061,1766184631872,-151.0,0.000143,2]
[399222063,1766184631881,-151.0,0.000143,2]
[399222065,1766184631890,-151.0,0.000143,2]
[399222067,1766184631899,-151.0,0.000143,2]
[399222069,1766184631908,-151.0,0.000143,2]
[399222071,1766184631917,-293.80544978,0.000143,2]
[399222073,1766184631925,-302.47072881,0.00014432,2]
[399222075,1766184631934,-211.12756532,0.00014432,2]
[399222077,1766184631943,-844.51026129,0.00014432,2]
[399222079,1766184631952,-1900.1480879,0.00014432,2]
[399222081,1766184631961,-478.79368001,0.00014432,2]
[399222083,1766184631970,-861.82862402,0.00014432,2]
[399222085,1766184631980,-1525.78765788,0.00014432,2]
[399222087,1766184631989,-532.0,0.00014443,2]
[399222089,1766184631998,-250.0,0.00014581,2]
[399222091,1766184632007,-315.33113474,0.00014653,2]
[399222093,1766184632016,-150.0,0.00015017,2]
[399222095,1766184632025,-150.0,0.00015017,2]
[399222097,1766184632034,-261.44938925,0.00015154,2]
[399222098,1766184632042,-150.0,0.00015154,2]
[399222100,1766184632051,-151.0,0.00015162,2]
[399222102,1766184632060,-334.08627936,0.00015162,2]
[399222104,1766184632068,-500.0,0.00015162,2]
[399222106,1766184632077,-628.5051435,0.00015162,2]
[399222108,1766184632086,-459.35902362,0.00015162,2]
[399222110,1766184632095,-500.0,0.00015162,2]
[399222112,1766184632104,-500.0,0.00015162,2]
[399222114,1766184632113,-500.0,0.00015162,2]
[399222116,1766184632122,-500.0,0.00015162,2]
[399222118,1766184632131,-510.39085768,0.00015162,2]
[399222120,1766184632140,-19605.8747622,0.00015163,2]
[399222176,1766184637774,-886.7462414,0.00015163,2]
[399222430,1766184640225,-3e-08,0.00015163,2]
[399223242,1766184676705,200.0,0.00013699,2]
[399223243,1766184679309,189.69793566,0.00013699,2]
[399223244,1766184682200,500.0,0.00013273,2]
[399223245,1766184683295,223.81122952,0.00013673,2]
[399223246,1766184723069,160.92940252,0.00013699,2]
[399223247,1766184752137,150.0,9.775e-05,2]
[399223248,1766184752578,150.0,0.00010241,2]
[399223249,1766184752979,150.0,0.00010706,2]
[399223250,1766184753371,150.0,0.00011172,2]
[399223251,1766184753776,183.99,0.00011637,2]
[399223252,1766184754170,220.79,0.00012102,2]
[399223253,1766184754574,257.59,0.00012568,2]
[399223254,1766184754975,294.39,0.00013033,2]
[399223255,1766184755423,331.19,0.00013499,2]
[399223256,1766184787012,406.61833001,0.00013273,2]
[399223257,1766184787325,500.0,0.00013273,2]
[399223258,1766184787378,822.0,0.00013821,2]
[399223259,1766184803496,500.0,0.00013273,2]
[399223260,1766184824436,150.0,9.766e-05,2]
[399223261,1766184824836,150.0,0.00010231,2]
[399223262,1766184825226,150.0,0.00010696,2]
[399223263,1766184825622,150.0,0.00011161,2]
[399223264,1766184826084,150.0,0.00011626,2]
[399223265,1766184826465,150.0,0.00012091,2]
[399223266,1766184826861,150.0,0.00012556,2]
[399223267,1766184827282,150.0,0.00013021,2]
[399223268,1766184837617,32.81433181,0.00013805,2]
[399223269,1766184837639,117.51229691,0.00013805,2]
[399223270,1766184853472,500.0,0.00013273,2]
[399223275,1766184891944,150.0,9.792e-05,2]
[399223276,1766184903422,500.0,0.00013273,2]
[399223277,1766184903453,1000.0,0.00013821,2]
[399223278,1766184919789,350.0,0.00013699,2]
[399223280,1766184921799,591.22664599,0.00013699,2]
[399223281,1766184923796,924.696791,0.00013699,2]
[399223293,1766184956675,150.0,9.788e-05,2]
[399223294,1766184957089,150.0,0.00010254,2]
[399223298,1766184965641,500.0,0.00013699,2]
[399223301,1766184970569,500.0,0.00013699,2]
[399223302,1766184972001,500.0,0.00013273,2]
[399223303,1766184972063,500.0,0.00013821,2]
[399223319,1766185039621,522.4666682,0.00013273,2]
[399223321,1766185041240,500.0,0.00013273,2]
[399223323,1766185043643,502.00577196,0.00013273,2]
[399223324,1766185043803,500.0,0.00013699,2]
[399223336,1766185065802,1046.36071324,0.00013964,2]
[399223345,1766185083038,500.0,0.00013273,2]
[399223346,1766185083093,113.25340961,0.00013821,2]
[399223347,1766185083119,143.32670797,0.00013821,2]
[399223351,1766185089267,2249.35312081,0.00013964,2]
[399223353,1766185090371,500.0,0.00013699,2]
[399223381,1766185146346,178.0,0.00013273,2]
[399223384,1766185148711,150.0,9.787e-05,2]
[399223385,1766185149120,150.0,0.00010253,2]
[399223386,1766185149526,150.0,0.00010719,2]
[399223387,1766185149952,150.0,0.00011185,2]
[399223388,1766185150370,176.22,0.00011651,2]
[399223389,1766185150765,211.46,0.00012117,2]
[399223390,1766185151187,246.71,0.00012583,2]
[399223391,1766185152073,281.95,0.00013049,2]
[399223392,1766185152494,317.19,0.00013515,2]
[399223394,1766185160494,500.0,0.00013273,2]
[399223395,1766185162488,-500.0,0.00013821,2]
[399223396,1766185163999,-352.44,0.00013981,2]
[399223422,1766185207765,500.0,0.00013273,2]
[399223423,1766185207812,500.0,0.00013821,2]
[399223424,1766185219989,150.0,9.81e-05,2]
[399223425,1766185220381,150.0,0.00010277,2]
[399223426,1766185220785,150.0,0.00010744,2]
[399223427,1766185221192,178.97,0.00011212,2]
[399223428,1766185222032,223.72,0.00011679,2]
[399223429,1766185222450,268.46,0.00012146,2]
[399223430,1766185222875,313.2,0.00012613,2]
[399223431,1766185223306,357.95,0.0001308,2]
[399223432,1766185223733,402.69,0.00013547,2]
[399223433,1766185226064,-368.2984121,0.00014015,2]
[399223446,1766185292132,150.0,0.00010471,2]
[399223447,1766185292543,150.0,0.0001097,2]
[399223448,1766185292948,150.0,0.00011468,2]
[399223449,1766185293375,158.06,0.00011967,2]
[399223450,1766185293793,197.58,0.00012466,2]
[399223451,1766185294240,237.09,0.00012964,2]
[399223452,1766185294657,276.61,0.00013463,2]
[399223453,1766185295062,316.12,0.00013962,2]
[399223455,1766185361964,150.0,9.211e-05,2]
[399223456,1766185362396,150.0,9.649e-05,2]
[399223457,1766185362822,150.0,0.00010088,2]